{"text_format":"1","workbook":"xlsx","n_sheets":3,"sheets":["Лист1","Лист2","Лист3"],"not_rendered":{"charts":0,"images":0,"macros":1,"external_links":0,"defined_names":4,"comments":0,"pivot_tables":0},"unopened":[],"bounds":{"document_bytes":16777216,"sheet_cells":100000,"rows_first":2000,"rows_last":500,"rows_between":2000,"halvings":0,"cell_chars":16384,"cell_head_chars":4096},"cells_cut":0,"cells_raw":0,"read":"whole","date_system":"1900"}

{"sheet":"Лист1","index":0,"n_rows":21,"n_cols":9,"rows_kept":21,"cut":false,"hidden":false,"merged":[]}
[null,null,null,{"$f":"ROW()","v":1},null,null,null,null,"Здесь имена"]
[null,null,null,{"$f":"ROW()","v":2},null,null,null,null,{"$f":"в","v":10}]
[null,null,null,{"$f":"ROW()","v":3},null,null,null,null,{"$f":"ййй","v":11}]
[null,null,null,{"$f":"ROW()","v":4},null,null,null,null,{"$f":"фыв","v":12}]
[null,null,null,{"$f":"ROW()","v":5},null,null,null,null,{"$f":"ц","v":13}]
[null,null,null,{"$f":"ROW()","v":6}]
[null,null,null,{"$f":"ROW()","v":7}]
[null,null,null,{"$f":"ROW()","v":8}]
[null,null,null,{"$f":"ROW()","v":9}]
[null,null,null,{"$f":"ROW()","v":10}]
[null,null,null,{"$f":"ROW()","v":11}]
[null,null,null,{"$f":"ROW()","v":12}]
[null,null,null,{"$f":"ROW()","v":13}]
[null,null,null,{"$f":"ROW()","v":14}]
[null,null,null,{"$f":"ROW()","v":15}]
[null,null,null,{"$f":"ROW()","v":16}]
[null,null,null,{"$f":"ROW()","v":17}]
[null,null,null,{"$f":"ROW()","v":18}]
[null,null,null,{"$f":"ROW()","v":19}]
[null,null,null,{"$f":"ROW()","v":20}]
[null,null,null,{"$f":"ROW()","v":21}]

{"sheet":"Лист2","index":1,"n_rows":0,"n_cols":0,"rows_kept":0,"cut":false,"hidden":true,"merged":[]}

{"sheet":"Лист3","index":2,"n_rows":0,"n_cols":0,"rows_kept":0,"cut":false,"hidden":true,"merged":[]}